bitfinex/quotes_BTCUSD_20250316
["timestamp","ask_amount","ask_price","bid_price","bid_amount"]
[1742130875575,0.0188372,83222.0,83221.0,0.26687985]
[1742130876036,0.0188372,83222.0,83221.0,0.27087985]
[1742130878385,0.0188372,83222.0,83221.0,0.34657985]
[1742130878592,0.01217526,83231.0,83229.0,0.012015]
[1742130878773,0.01217526,83231.0,83229.0,0.252313]
[1742130879093,0.00555605,83230.0,83229.0,0.252313]
[1742130879431,0.00555605,83230.0,83228.0,0.240301]
[1742130881771,0.02439211,83230.0,83228.0,0.240301]
[1742130882954,0.00555605,83230.0,83228.0,0.240301]
[1742130883782,0.00555605,83230.0,83228.0,0.252316]
[1742130883961,0.00555605,83230.0,83229.0,0.012015]
[1742130886552,0.00555605,83230.0,83227.0,0.012015]
[1742130886730,0.00555605,83230.0,83227.0,0.252319]
[1742130887607,0.00555605,83230.0,83227.0,0.240304]
[1742130890315,0.26469189,83230.0,83226.0,0.012015]
[1742130890517,0.26469189,83230.0,83226.0,0.252322]
[1742130891103,0.012015,83223.0,83221.0,0.000338]
[1742130891300,0.012016,83222.0,83221.0,0.000338]
[1742130892172,0.01751407,83222.0,83221.0,0.000338]
[1742130892559,0.01951407,83222.0,83221.0,0.000338]
[1742130903251,0.03835187,83222.0,83221.0,0.000338]
[1742130904716,0.33068053,83222.0,83221.0,0.000338]
[1742130907135,0.63068053,83222.0,83221.0,0.000338]
[1742130907588,0.012019,83197.0,83193.0,0.0779]
[1742130907799,0.252412,83197.0,83193.0,0.0779]
[1742130907993,0.25780768,83197.0,83192.0,6e-08]
[1742130908853,0.25780768,83197.0,83196.0,0.0023382]
[1742130909226,0.25780768,83197.0,83196.0,0.0003382]
[1742130909426,0.25780768,83197.0,83196.0,0.0013382]
[1742130909611,0.25780768,83197.0,83196.0,0.0033382]
[1742130910871,0.26999203,83197.0,83196.0,0.0033382]
[1742130911075,0.61958593,83197.0,83196.0,0.0033382]
[1742130911282,0.76054593,83197.0,83196.0,0.0013382]
[1742130911505,1.05287459,83197.0,83196.0,0.0013382]
[1742130911666,1.05287459,83197.0,83196.0,0.0033382]
[1742130912021,1.05287459,83197.0,83196.0,0.0023382]
[1742130912168,1.03403136,83197.0,83196.0,0.0003382]
[1742130912602,1.03503136,83197.0,83196.0,0.0003382]
[1742130913024,1.03403136,83197.0,83196.0,0.0003382]
[1742130913860,1.01248607,83197.0,83196.0,0.0003382]
[1742130914398,1.01548607,83197.0,83196.0,0.0003382]
[1742130914905,0.552424,83193.0,83192.0,6e-08]
[1742130915091,1.32118655,83193.0,83192.0,0.00012381]
[1742130915280,1.51415078,83193.0,83192.0,0.00012381]
[1742130915515,1.56195078,83193.0,83192.0,0.00012381]
[1742130915924,1.56195078,83193.0,83192.0,8.1e-07]
[1742130916114,1.56362823,83193.0,83192.0,8.1e-07]
[1742130916318,1.85595689,83193.0,83192.0,8.1e-07]
[1742130916548,1.88009161,83193.0,83192.0,8.1e-07]
[1742130916838,2.02105161,83193.0,83192.0,8.1e-07]
[1742130917467,2.01905161,83193.0,83192.0,8.1e-07]
[1742130917691,0.552448,83185.0,83184.0,0.00029901]
[1742130918108,0.55772149,83185.0,83184.0,0.00029901]
[1742130919307,0.00527349,83185.0,83184.0,0.08339901]
[1742130919493,0.257448,83185.0,83184.0,0.08339901]
[1742130919688,0.257448,83185.0,83184.0,0.00029901]
[1742130920809,0.393408,83185.0,83184.0,0.00029901]
[1742130920967,0.81298303,83185.0,83184.0,0.00029901]
[1742130921561,0.81298303,83185.0,83184.0,9.81e-05]
[1742130921708,0.83183107,83185.0,83184.0,9.81e-05]
[1742130922122,0.83283107,83185.0,83184.0,9.81e-05]
[1742130922464,0.83183107,83185.0,83184.0,9.81e-05]
[1742130922673,0.71225604,83185.0,83184.0,9.81e-05]
[1742130922848,0.71725604,83185.0,83184.0,9.81e-05]
[1742130925056,1.0095847,83185.0,83184.0,9.81e-05]
[1742130926938,0.7483921,83185.0,83184.0,9.81e-05]
[1742130927553,0.7604131,83185.0,83184.0,9.81e-05]
[1742130928146,1.0008401,83185.0,83184.0,9.81e-05]
[1742130928497,0.98199206,83185.0,83184.0,9.81e-05]
[1742130928991,1.03199206,83185.0,83184.0,9.81e-05]
[1742130930890,1.12989241,83185.0,83184.0,9.81e-05]
[1742130931638,1.03199206,83185.0,83184.0,9.81e-05]
[1742130931937,1.05084006,83185.0,83184.0,9.81e-05]
[1742130935297,0.252478,83175.0,83174.0,0.0003382]
[1742130935511,0.84480666,83175.0,83174.0,0.0003382]
[1742130935995,0.86365631,83175.0,83174.0,0.0003382]
[1742130936533,0.86365631,83175.0,83174.0,0.0003382]
[1742130936733,0.86565631,83175.0,83174.0,0.0003382]
[1742130936940,0.86365631,83175.0,83174.0,0.0003382]
[1742130937364,0.86665631,83175.0,83174.0,0.0003382]
[1742130938023,0.89067548,83175.0,83174.0,0.0003382]
[1742130938646,0.87582583,83175.0,83174.0,0.0003382]
[1742130940120,1.63962583,83175.0,83174.0,0.0003382]
[1742130940328,1.64855528,83175.0,83174.0,0.0003382]
[1742130940845,1.40809928,83175.0,83162.0,0.0050988]
[1742130941053,0.552515,83163.0,83162.0,0.0050988]
[1742130942635,0.84484366,83163.0,83162.0,0.0050988]
[1742130942883,0.3,83156.0,83155.0,0.00029821]
[1742130943165,0.60435366,83156.0,83155.0,0.00029821]
[1742130943583,0.62320816,83156.0,83155.0,0.00029821]
[1742130943782,0.62320816,83156.0,83155.0,2.1e-07]
[1742130944198,0.62420816,83156.0,83155.0,2.1e-07]
[1742130944353,0.62320816,83156.0,83155.0,2.1e-07]
[1742130944749,0.64715991,83156.0,83155.0,2.1e-07]
[1742130945000,0.64915991,83156.0,83155.0,2.1e-07]
[1742130945480,0.64715991,83156.0,83155.0,2.1e-07]
[1742130945855,0.65415991,83156.0,83155.0,2.1e-07]
[1742130946763,0.65215991,83156.0,83155.0,2.1e-07]
[1742130947108,0.70615991,83156.0,83155.0,2.1e-07]
[1742130947716,0.70363991,83156.0,83155.0,2.1e-07]
[1742130948521,0.68478541,83156.0,83155.0,2.1e-07]
[1742130949917,0.68478541,83156.0,83144.0,0.000338]
[1742130949918,0.012026,83152.0,83144.0,0.000338]
[1742130950135,0.252549,83152.0,83144.0,0.000338]
[1742130950802,0.552567,83146.0,83144.0,0.000338]
[1742130951206,0.67214203,83146.0,83144.0,0.000338]
[1742130951747,0.69099751,83146.0,83144.0,0.000338]
[1742130952156,0.69299751,83146.0,83144.0,0.000338]
[1742130952396,0.57342248,83146.0,83144.0,0.000338]
[1742130954005,0.57442248,83146.0,83144.0,0.000338]
[1742130954512,0.86675114,83146.0,83144.0,0.000338]
[1742130955906,1.63075114,83146.0,83144.0,0.000338]
[1742130956113,1.64293804,83146.0,83144.0,0.000338]
[1742130956312,1.07151556,83146.0,83144.0,0.012365]
[1742130956516,1.07151556,83146.0,83145.0,0.3821082]
[1742130956517,1.05932866,83146.0,83145.0,0.3821082]
[1742130956718,1.05932866,83146.0,83145.0,0.39664905]
[1742130957474,0.003,83146.0,83145.0,0.39664905]
[1742130957676,0.002,83146.0,83145.0,0.3821082]
[1742130957888,0.0503386,83156.0,83155.0,0.379039]
[1742130958410,0.0503386,83156.0,83155.0,0.378039]
[1742130959938,0.0503386,83156.0,83155.0,0.1265]
[1742130960165,0.0503386,83156.0,83155.0,0.138525]
[1742130961017,0.06918984,83156.0,83155.0,0.138525]
[1742130961188,0.07018984,83156.0,83155.0,0.138525]
[1742130961544,0.07118984,83156.0,83155.0,0.139525]
[1742130961768,0.07118984,83156.0,83155.0,0.1275]
[1742130963088,0.08321484,83156.0,83155.0,0.1275]
[1742130963239,0.08221484,83156.0,83155.0,0.1275]
[1742130963451,0.08121484,83156.0,83155.0,0.1265]
[1742130964820,0.08121484,83156.0,83155.0,0.1275]
[1742130966402,0.06918984,83156.0,83155.0,0.1275]
[1742130966609,0.0503386,83156.0,83155.0,0.139525]
[1742130968182,0.0503386,83156.0,83155.0,0.1396943]
[1742130969595,0.0502386,83156.0,83155.0,0.1396943]
[1742130969796,0.06908862,83156.0,83155.0,0.1396943]
[1742130974137,0.06908862,83156.0,83155.0,0.14089678]
[1742130974348,0.06908862,83156.0,83155.0,0.15543763]
[1742130974772,0.06908862,83156.0,83155.0,1.65543763]
[1742130974976,0.06908862,83156.0,83155.0,1.65423515]
[1742130975178,0.06908862,83156.0,83155.0,0.15423515]
[1742130975413,0.06908862,83156.0,83155.0,0.15543751]
[1742130975614,0.06908862,83156.0,83155.0,1.65543751]
[1742130975816,0.07008862,83156.0,83155.0,1.65423515]
[1742130976068,0.07008862,83156.0,83155.0,1.79507515]
[1742130976240,0.0512386,83156.0,83155.0,1.80722211]
[1742130977366,0.0522386,83156.0,83155.0,1.79807515]
[1742130978177,0.0522386,83156.0,83155.0,1.80983233]
[1742130978596,0.0522386,83156.0,83155.0,2.10983233]
[1742130979272,0.012021,83181.0,83173.0,0.1311]
[1742130979273,0.240442,83181.0,83173.0,0.1311]
[1742130979481,0.3,83198.0,83188.0,0.082]
[1742130979711,0.012018,83203.0,83189.0,0.05030197]
[1742130979913,0.00029317,83193.0,83192.0,0.252427]
[1742130980087,0.00029317,83193.0,83192.0,0.333427]
[1742130980636,0.00029317,83193.0,83192.0,0.332427]
[1742130981357,0.00029317,83193.0,83192.0,0.64696785]
[1742130981481,0.00029317,83193.0,83192.0,0.69906785]
[1742130981914,0.00029317,83193.0,83192.0,2.19606785]
[1742130982110,0.01884104,83223.0,83212.0,0.012017]
[1742130982313,0.01896507,83223.0,83216.0,0.012016]
[1742130982674,0.01896507,83223.0,83216.0,0.252354]
[1742130982876,0.03098007,83223.0,83214.0,0.371444]
[1742130983084,0.03098007,83223.0,83215.0,0.00120156]
[1742130983283,0.252339,83222.0,83215.0,0.00120156]
[1742130983519,0.252339,83222.0,83214.0,0.13230157]
[1742130983716,0.252339,83222.0,83216.0,0.001]
[1742130983920,0.252339,83222.0,83214.0,0.13230157]
[1742130984122,0.252342,83221.0,83214.0,0.13230157]
[1742130984330,0.240329,83220.0,83215.0,0.001]
[1742130984553,0.240329,83220.0,83214.0,0.1311]
[1742130984751,0.240329,83220.0,83215.0,0.002]
[1742130984957,0.240329,83220.0,83216.0,0.002]
[1742130985290,0.012016,83221.0,83216.0,0.002]
[1742130985790,0.00012403,83223.0,83216.0,0.002]
[1742130985992,0.00012403,83223.0,83216.0,0.00320154]
[1742130986395,0.00012403,83223.0,83216.0,0.00120154]
[1742130986595,0.012016,83222.0,83216.0,0.00120154]
[1742130986807,0.012016,83222.0,83215.0,0.002]
[1742130986941,0.252339,83222.0,83215.0,0.00120155]
[1742130987164,0.252339,83222.0,83216.0,0.004]
[1742130987367,0.012016,83222.0,83216.0,0.004]
[1742130987572,0.00012403,83223.0,83216.0,0.242338]
[1742130987771,0.00012403,83223.0,83217.0,0.00120152]
[1742130988595,2.403e-05,83223.0,83217.0,0.00120152]
[1742130989147,0.01883703,83222.0,83217.0,0.00120152]
[1742130989334,0.01883703,83222.0,83217.0,0.25355052]
[1742130989531,0.01883703,83222.0,83218.0,0.252346]
[1742130989752,0.01883703,83222.0,83221.0,0.012016]
[1742130991151,0.01900633,83222.0,83221.0,0.01621741]
[1742130991327,0.01900633,83222.0,83221.0,0.012016]
[1742130992103,0.01900633,83222.0,83221.0,0.094416]
[1742130992514,0.01900633,83222.0,83221.0,0.09561738]
[1742130992675,0.01900633,83222.0,83221.0,0.09961738]
[1742130993213,0.01900633,83222.0,83221.0,0.094416]
[1742130993444,0.01900633,83222.0,83221.0,0.098416]
[1742130993812,0.01900633,83222.0,83221.0,0.095416]
[1742130994009,0.01900633,83222.0,83221.0,0.236136]
[1742130994663,0.01900633,83222.0,83221.0,0.240136]
[1742130996000,0.06900633,83222.0,83221.0,0.240136]
[1742130996214,0.08102233,83222.0,83221.0,0.0874]
[1742130996426,0.08102233,83222.0,83221.0,0.008]
[1742130996626,0.06900633,83222.0,83221.0,0.008]
[1742130998601,0.0621853,83222.0,83221.0,0.008]
[1742130999687,0.0621853,83222.0,83221.0,0.004]
[1742130999888,0.0621853,83222.0,83221.0,0.007]
[1742131000298,0.0621853,83222.0,83221.0,0.003]
[1742131000500,0.0621853,83222.0,83221.0,0.006]
[1742131001225,0.0621853,83222.0,83221.0,0.003]
[1742131001430,0.0621853,83222.0,83221.0,0.006]
[1742131002089,0.08102265,83222.0,83221.0,0.006]
[1742131002674,0.08102265,83222.0,83221.0,0.0063384]
[1742131002882,0.08102265,83222.0,83221.0,0.0033384]
[1742131003090,0.08102265,83222.0,83221.0,0.0043384]
[1742131003300,0.06900665,83222.0,83221.0,0.0043384]
[1742131003696,0.06900665,83222.0,83221.0,0.0013384]
[1742131003898,0.06900665,83222.0,83221.0,0.1400544]
[1742131004324,0.06900665,83222.0,83221.0,0.1390544]
[1742131004459,0.06900665,83222.0,83221.0,0.1380544]
[1742131004657,0.06900665,83222.0,83221.0,0.1400544]
[1742131005189,0.06900665,83222.0,83221.0,0.1380544]
[1742131005388,0.06900665,83222.0,83221.0,0.1400544]
[1742131005595,0.06900665,83222.0,83221.0,0.1440544]
[1742131006213,0.06900665,83222.0,83221.0,0.29780985]
[1742131006433,0.06900665,83222.0,83221.0,0.2966084]
[1742131006646,0.06900665,83222.0,83221.0,0.2946084]
[1742131006865,0.0501693,83222.0,83221.0,0.2827344]
[1742131007253,0.3025063,83222.0,83221.0,0.1450184]
[1742131007471,0.3025063,83222.0,83221.0,0.0043384]
[1742131007820,0.3025063,83222.0,83221.0,0.0083384]
[1742131008045,0.31431056,83222.0,83221.0,0.0083384]
[1742131010137,0.3331482,83222.0,83221.0,0.0083384]
[1742131011991,0.32134394,83222.0,83221.0,0.0083384]
[1742131012229,0.32134394,83222.0,83221.0,0.0043384]
[1742131013313,0.32134394,83222.0,83221.0,0.0073384]
[1742131013477,0.32134394,83222.0,83221.0,0.0033384]
[1742131013883,0.32134394,83222.0,83221.0,0.0063384]
[1742131014629,0.32134394,83222.0,83221.0,0.0033384]
[1742131014813,0.240427,83185.0,83184.0,0.0462]
[1742131015022,0.012021,83186.0,83184.0,0.1257]
[1742131015405,0.240421,83188.0,83184.0,0.12690201]
[1742131015607,0.01884324,83186.0,83184.0,0.1257]
[1742131015813,0.252448,83185.0,83184.0,0.0795]
[1742131016009,0.01884324,83186.0,83173.0,0.14064]
[1742131016010,0.252478,83176.0,83173.0,0.14064]
[1742131016339,0.252452,83184.0,83177.0,0.012022]
[1742131016496,0.252452,83184.0,83178.0,0.0012021]
[1742131016704,0.252457,83183.0,83178.0,0.0132241]
[1742131016947,0.252459,83182.0,83178.0,0.240446]
[1742131017141,0.249939,83182.0,83177.0,0.012022]
[1742131018130,0.012022,83180.0,83162.0,0.240493]
[1742131018341,0.240466,83172.0,83167.0,0.14064]
[1742131018558,0.012023,83171.0,83169.0,9.999e-05]
[1742131018958,0.252494,83170.0,83169.0,9.999e-05]
[1742131019758,0.2713408,83170.0,83169.0,9.999e-05]
[1742131021320,0.2713408,83170.0,83169.0,0.00609999]
[1742131021866,0.2713408,83170.0,83169.0,0.00909999]
[1742131022023,0.2713408,83170.0,83169.0,0.00309999]
[1742131022432,0.2713408,83170.0,83169.0,0.00609999]
[1742131025883,0.552494,83170.0,83169.0,0.00609999]
[1742131026245,0.552494,83170.0,83169.0,0.00626929]
[1742131027279,0.552494,83170.0,83169.0,0.00326929]
[1742131027494,0.552494,83170.0,83169.0,0.00126929]
[1742131028226,0.693174,83170.0,83169.0,0.00026929]
[1742131028590,0.693174,83170.0,83169.0,0.00126929]
[1742131028781,1.23247769,83170.0,83169.0,2.9e-07]
[1742131028990,0.252536,83156.0,83155.0,0.0001693]
[1742131029131,0.552536,83156.0,83155.0,0.00029317]
[1742131031077,0.553536,83156.0,83155.0,0.00029317]
[1742131031892,0.001,83156.0,83155.0,0.00029317]
[1742131032112,0.013025,83156.0,83155.0,0.00029317]
[1742131032520,0.012025,83156.0,83155.0,0.00029317]
[1742131032840,0.012025,83156.0,83155.0,0.00129317]
[1742131033219,0.012025,83156.0,83145.0,0.2529082]
[1742131033220,0.012027,83145.0,83144.0,7.1e-07]
[1742131033418,0.31322957,83145.0,83144.0,0.00041446]
[1742131033639,0.312027,83145.0,83144.0,0.00041446]
[1742131034560,0.312027,83145.0,83144.0,4.6e-07]
[1742131034854,0.33288423,83145.0,83144.0,4.6e-07]
[1742131035295,0.552591,83138.0,83137.0,8.6e-07]
[1742131035596,0.98559966,83138.0,83137.0,0.00012501]
[1742131036420,0.98559966,83138.0,83111.0,0.0008]
[1742131036421,0.012031,83112.0,83111.0,2e-07]
[1742131036589,0.45395357,83112.0,83111.0,2e-07]
[1742131036781,0.45812649,83112.0,83111.0,2e-07]
[1742131037961,0.45822081,83112.0,83111.0,2e-07]
[1742131038165,0.15822081,83112.0,83111.0,2e-07]
[1742131038359,0.16242338,83112.0,83111.0,2e-07]
[1742131038568,0.02050081,83112.0,83111.0,2e-07]
[1742131039356,0.01970338,83112.0,83111.0,2e-07]
[1742131039733,0.01986474,83112.0,83111.0,2e-07]
[1742131039948,0.03189574,83112.0,83111.0,0.0001695]
[1742131040246,0.013031,83112.0,83111.0,0.0001695]
[1742131040827,0.013031,83112.0,83111.0,0.0011695]
[1742131041024,0.012031,83112.0,83111.0,0.0001695]
[1742131041464,0.013031,83112.0,83111.0,0.0001695]
[1742131041673,0.313031,83112.0,83111.0,0.0001695]
[1742131042279,0.315031,83112.0,83111.0,0.0001695]
[1742131042876,0.33389597,83112.0,83111.0,0.0001695]
[1742131044441,0.47465597,83112.0,83111.0,0.0001695]
[1742131045086,0.47265597,83112.0,83111.0,0.0001695]
[1742131045286,0.47365597,83112.0,83111.0,0.0001695]
[1742131045815,0.47465597,83112.0,83111.0,0.0001695]
[1742131047461,0.47465597,83112.0,83111.0,5e-07]
[1742131047683,0.552679,83109.0,83108.0,7e-07]
[1742131047882,0.84500766,83109.0,83108.0,7e-07]
[1742131048289,0.552703,83101.0,83100.0,0.0002991]
[1742131050070,0.58362962,83101.0,83100.0,0.0002991]
[1742131050491,0.552703,83101.0,83100.0,0.0002991]
[1742131050643,0.696463,83101.0,83100.0,0.0002991]
[1742131050854,0.71532995,83101.0,83100.0,0.0002991]
[1742131051050,0.71732995,83101.0,83100.0,0.0002991]
[1742131051755,0.71832995,83101.0,83100.0,0.0002991]
[1742131051959,0.57756995,83101.0,83100.0,0.0002991]
[1742131052161,0.57556995,83101.0,83100.0,0.0002991]
[1742131052502,0.27256995,83101.0,83100.0,0.0002991]
[1742131053505,0.27356995,83101.0,83100.0,0.0002991]
[1742131053711,0.39514498,83101.0,83100.0,0.0002991]
[1742131054000,0.554703,83101.0,83100.0,0.0002991]
[1742131054226,0.84503166,83101.0,83100.0,0.0002991]
[1742131054511,0.84603166,83101.0,83100.0,0.0002991]
[1742131055086,0.84503166,83101.0,83100.0,0.0002991]
[1742131055300,0.84803166,83101.0,83100.0,0.0002991]
[1742131056675,0.84703166,83101.0,83100.0,0.0002991]
[1742131056849,0.84803166,83101.0,83100.0,0.0002991]
[1742131057150,0.86689831,83101.0,83100.0,0.0002991]
[1742131057368,1.00765831,83101.0,83100.0,0.0002991]
[1742131057922,0.98879166,83101.0,83100.0,0.0002991]
[1742131059903,1.75319166,83101.0,83100.0,0.0002991]
[1742131061165,1.61243166,83101.0,83100.0,0.0002991]
[1742131061510,1.77205768,83101.0,83100.0,0.0002991]
[1742131062051,1.07859468,83101.0,83100.0,0.0002991]
[1742131062249,1.07859468,83101.0,83100.0,0.2530051]
[1742131062455,1.07859468,83101.0,83100.0,0.3286051]
[1742131062655,0.31419468,83101.0,83100.0,0.3286051]
[1742131062884,0.31319468,83101.0,83100.0,0.3286051]
[1742131063084,0.31119468,83101.0,83100.0,0.3286051]
[1742131063571,0.31219468,83101.0,83100.0,0.3286051]
[1742131063979,0.31219468,83101.0,83100.0,0.3326051]
[1742131064197,0.31253308,83101.0,83100.0,0.3326051]
[1742131064397,0.31253308,83101.0,83100.0,0.0919321]
[1742131064601,0.31153308,83101.0,83100.0,0.0919321]
[1742131065902,0.01920442,83101.0,83100.0,0.0798991]
[1742131068618,0.0003384,83101.0,83100.0,0.0798991]
[1742131069399,0.0003384,83101.0,83100.0,0.0919321]
[1742131071587,0.0123714,83101.0,83100.0,0.0042991]
[1742131071995,0.03123541,83101.0,83100.0,0.0042991]
[1742131072861,0.03123541,83101.0,83100.0,0.0002991]
[1742131073071,0.33123541,83101.0,83100.0,1e-07]
[1742131074311,0.012035,83086.0,83085.0,0.0001693]
[1742131075051,0.03090338,83086.0,83085.0,0.0001693]
[1742131075250,0.27161738,83086.0,83085.0,0.0001693]
[1742131075470,0.27161738,83086.0,83085.0,0.00029338]
[1742131075677,0.28667592,83086.0,83085.0,0.00029338]
[1742131077287,0.28667592,83086.0,83085.0,0.00029338]
[1742131077481,0.27161738,83086.0,83085.0,0.00029338]
[1742131078749,0.252749,83086.0,83085.0,0.00029338]
[1742131080448,0.27644994,83086.0,83085.0,0.00129338]
[1742131080765,0.27644994,83086.0,83085.0,0.00029338]
[1742131081179,0.27644994,83086.0,83085.0,0.00129338]
[1742131081424,0.252749,83086.0,83085.0,0.00129338]
[1742131083271,0.27161786,83086.0,83085.0,0.00129338]
[1742131086449,0.01495655,83087.0,83085.0,0.01584838]
[1742131086649,0.240711,83088.0,83086.0,0.0816]
[1742131086864,0.012035,83087.0,83086.0,0.0816]
[1742131088393,0.012035,83087.0,83085.0,0.00281338]
[1742131088394,0.252749,83086.0,83085.0,0.00281338]
[1742131089986,0.27161706,83086.0,83085.0,0.00281338]
[1742131090700,0.27161706,83086.0,83085.0,0.00381338]
[1742131090907,0.252749,83086.0,83085.0,0.00381338]
[1742131092126,0.240711,83087.0,83085.0,0.00381338]
[1742131092532,0.012035,83086.0,83085.0,0.00381338]
[1742131093046,0.252749,83086.0,83085.0,0.00281338]
[1742131093427,0.252749,83086.0,83085.0,0.00381338]
[1742131093628,0.252749,83086.0,83085.0,0.00281338]
[1742131094057,0.252749,83086.0,83085.0,0.00381338]
[1742131095346,0.27161704,83086.0,83085.0,0.00381338]
[1742131097183,0.01886804,83086.0,83085.0,0.00381338]
[1742131097386,0.240701,83091.0,83085.0,0.14044838]
[1742131097568,0.252731,83092.0,83085.0,0.14044838]
[1742131097784,0.252719,83096.0,83086.0,0.252749]
[1742131097989,0.240689,83095.0,83086.0,0.012035]
[1742131098209,0.252723,83095.0,83088.0,0.240707]
[1742131098405,0.252729,83093.0,83087.0,0.252744]
[1742131098670,0.252726,83094.0,83088.0,0.012035]
[1742131098871,0.252729,83093.0,83088.0,0.012035]
[1742131099093,0.240698,83092.0,83087.0,0.252744]
[1742131099235,0.240698,83092.0,83085.0,0.38116238]
[1742131099236,0.012034,83091.0,83085.0,0.38116238]
[1742131099802,0.012034,83091.0,83085.0,0.38016238]
[1742131100002,0.252735,83091.0,83085.0,0.38016238]
[1742131100281,0.240701,83091.0,83086.0,0.012035]
[1742131100503,0.01886701,83090.0,83086.0,0.252746]
[1742131100644,0.01886701,83090.0,83088.0,0.240707]
[1742131101067,0.01886701,83090.0,83087.0,0.252745]
[1742131101765,0.01886701,83090.0,83088.0,0.240707]
[1742131101987,0.01886701,83090.0,83087.0,0.240709]
[1742131102222,0.01886701,83090.0,83086.0,0.252746]
[1742131102441,0.01886701,83090.0,83088.0,0.240707]
[1742131102614,0.01886701,83090.0,83089.0,0.012035]
[1742131103037,0.01886701,83090.0,83089.0,0.10574624]
[1742131103250,0.01886701,83090.0,83089.0,0.24642608]
[1742131103403,0.01886701,83090.0,83089.0,1.731115]
[1742131103606,0.01886701,83090.0,83089.0,0.277315]
[1742131104156,0.01886701,83090.0,83089.0,0.279315]
[1742131104369,0.01886701,83090.0,83089.0,0.277315]
[1742131104826,0.01986701,83090.0,83089.0,0.29390994]
[1742131104997,0.01986701,83090.0,83089.0,0.29190994]
[1742131105405,0.02086701,83090.0,83089.0,0.29390994]
[1742131105584,0.02186701,83090.0,83089.0,0.29390994]
[1742131106155,0.02086701,83090.0,83089.0,0.29390994]
[1742131106426,0.02186701,83090.0,83089.0,0.29390994]
[1742131106855,0.003,83090.0,83089.0,0.29390994]
[1742131107061,0.003,83090.0,83089.0,0.279315]
[1742131108134,0.003,83090.0,83089.0,1.779315]
[1742131108849,0.003,83090.0,83089.0,1.79383542]
[1742131111153,0.0033384,83090.0,83089.0,1.79383542]
[1742131119849,0.0153734,83090.0,83089.0,0.002]
[1742131120637,0.0143734,83090.0,83089.0,0.002]
[1742131120840,0.0023384,83090.0,83089.0,0.002]
[1742131121046,0.0033384,83090.0,83089.0,0.014035]
[1742131121186,0.0013384,83090.0,83089.0,0.012035]
[1742131121568,0.0023384,83090.0,83089.0,0.015035]
[1742131121769,0.0023384,83090.0,83089.0,0.012035]
[1742131121968,0.02120428,83090.0,83089.0,0.01323839]
[1742131122171,0.02120428,83090.0,83089.0,0.0132384]
[1742131122426,0.0013384,83090.0,83089.0,0.1363384]
[1742131122628,0.0013384,83090.0,83089.0,0.15105877]
[1742131123186,0.0013384,83090.0,83089.0,0.1363384]
[1742131123400,0.0013384,83090.0,83089.0,0.138135]
[1742131124084,0.0013384,83090.0,83089.0,0.14233834]
[1742131124262,0.0003384,83090.0,83089.0,0.13633834]
[1742131124502,0.0013384,83090.0,83089.0,0.13933834]
[1742131124852,0.0013384,83090.0,83089.0,0.138135]
[1742131125379,0.0023384,83090.0,83089.0,0.138135]
[1742131125692,0.02120243,83090.0,83089.0,0.138135]
[1742131126654,0.02120243,83090.0,83089.0,0.091835]
[1742131127139,0.02120243,83090.0,83089.0,0.003]
[1742131127362,0.0023384,83090.0,83089.0,0.003]
[1742131127754,0.02850119,83090.0,83089.0,0.003]
[1742131128371,0.02850119,83090.0,83088.0,0.0001692]
[1742131128372,0.2540784,83090.0,83088.0,0.0001692]
[1742131129244,0.0003384,83090.0,83088.0,0.2408752]
[1742131129447,0.0013384,83090.0,83089.0,0.012035]
[1742131129831,0.0023384,83090.0,83089.0,0.015035]
[1742131131866,0.01920394,83090.0,83089.0,0.015035]
[1742131132034,0.03123894,83090.0,83089.0,0.003]
[1742131133068,0.22382458,83092.0,83089.0,0.003]
[1742131133275,0.012035,83090.0,83089.0,0.003]
[1742131133680,0.012034,83095.0,83089.0,0.003]
[1742131133681,0.252711,83099.0,83089.0,0.003]
[1742131133933,0.240681,83098.0,83093.0,0.012034]
[1742131134153,0.240681,83098.0,83093.0,0.252726]
[1742131134304,0.240681,83098.0,83092.0,0.012034]
[1742131134305,0.252714,83098.0,83092.0,0.012034]
[1742131134513,0.252714,83098.0,83091.0,0.252732]
[1742131134930,0.0003384,83100.0,83099.0,0.012033]
[1742131136172,0.0003384,83100.0,83095.0,0.252713]
[1742131136366,0.240676,83099.0,83094.0,0.322088]
[1742131136617,0.012033,83098.0,83094.0,0.0814]
[1742131136946,0.252712,83098.0,83094.0,0.0814]
[1742131137147,0.0123714,83100.0,83095.0,0.252722]
[1742131137547,0.0123714,83100.0,83095.0,0.255722]
[1742131137977,0.0123714,83100.0,83096.0,0.240683]
[1742131138176,0.252716,83097.0,83095.0,0.003]
[1742131138912,0.012034,83096.0,83095.0,0.006]
[1742131139230,0.252716,83097.0,83091.0,0.252731]
[1742131139418,0.252716,83097.0,83095.0,0.004]
[1742131139688,0.252716,83097.0,83096.0,0.003]
[1742131140008,0.252716,83097.0,83092.0,0.240695]
[1742131140213,0.240687,83096.0,83091.0,0.252731]
[1742131140583,0.252716,83097.0,83091.0,0.256731]
[1742131140795,0.240687,83096.0,83091.0,0.256731]
[1742131140959,0.252716,83097.0,83091.0,0.252731]
[1742131141133,0.252716,83097.0,83092.0,0.244695]
[1742131141319,0.252716,83097.0,83095.0,0.005]
[1742131141520,0.252722,83096.0,83092.0,0.004]
[1742131142001,0.252716,83097.0,83092.0,0.244694]
[1742131142688,0.252716,83097.0,83092.0,0.245694]
[1742131143127,0.252716,83097.0,83092.0,0.252728]
[1742131143473,0.240682,83097.0,83092.0,0.012034]
[1742131143671,0.24069,83095.0,83089.0,0.393338]
[1742131144011,0.27158488,83096.0,83091.0,0.240698]
[1742131144227,0.24069,83095.0,83092.0,0.004]
[1742131144422,0.012034,83094.0,83092.0,0.004]
[1742131144799,0.03089888,83096.0,83092.0,0.248695]
[1742131145129,0.01886488,83096.0,83092.0,0.260729]
[1742131145328,0.240688,83095.0,83092.0,0.004]
[1742131145531,0.01886488,83096.0,83091.0,0.017034]
[1742131145725,0.01886488,83096.0,83091.0,0.0172032]
[1742131146028,0.03089888,83096.0,83091.0,0.0122032]
[1742131146236,0.03089888,83096.0,83092.0,0.005]
[1742131146739,0.012034,83093.0,83092.0,0.005]
[1742131147597,0.252731,83092.0,83091.0,0.0001692]
[1742131147949,0.252731,83092.0,83091.0,0.0051692]
[1742131148154,0.252731,83092.0,83091.0,0.0001692]
[1742131149088,0.252731,83092.0,83091.0,0.0041692]
[1742131150123,0.252731,83092.0,83091.0,0.0081692]
[1742131150305,0.27159707,83092.0,83091.0,0.0081692]
[1742131150837,0.27159707,83092.0,83091.0,0.0001692]